[Event "Titled Tuesday Blitz July 25 Early 2023"]
[White "Smiechu"]
[Black "Santos Flores, Alberto"]
[BlackFideId "3601234"]
[WhiteElo "2361"]
[BlackElo "2529"]
[Result "0-1"]
[Round "5"]
[TimeControl "180+2"]
[Date "2023.07.25"]
[WhiteClock "0:00:00"]
[BlackClock "0:00:22"]
[Board "133"]

1. e4 {[%clk 0:01:33]}  e6 {[%clk 0:02:58]} 2. d4 {[%clk 0:01:32]}  d5 {[%clk 0:02:59]} 3. Bd3 {[%clk 0:01:32]}  dxe4 {[%clk 0:02:59]} 4. Bxe4 {[%clk 0:01:33]}  Nf6 {[%clk 0:02:59]} 5. Bf3 {[%clk 0:01:33]}  Bd6 {[%clk 0:03:00]} 6. Ne2 {[%clk 0:01:33]}  O-O {[%clk 0:03:00]} 7. O-O {[%clk 0:01:33]}  e5 {[%clk 0:02:58]} 8. dxe5 {[%clk 0:01:33]}  Bxe5 {[%clk 0:02:58]} 9. Nbc3 {[%clk 0:01:33]}  c6 {[%clk 0:02:55]} 10. Bf4 {[%clk 0:01:33]}  Qxd1 {[%clk 0:02:47]} 11. Raxd1 {[%clk 0:01:32]}  Bxf4 {[%clk 0:02:47]} 12. Nxf4 {[%clk 0:01:32]}  Bf5 {[%clk 0:02:48]} 13. Rd2 {[%clk 0:01:27]}  Na6 {[%clk 0:02:46]} 14. Nce2 {[%clk 0:01:22]}  Rad8 {[%clk 0:02:44]} 15. Rfd1 {[%clk 0:01:21]}  Rxd2 {[%clk 0:02:43]} 16. Rxd2 {[%clk 0:01:22]}  Ne4 {[%clk 0:02:31]} 17. Bxe4 {[%clk 0:01:16]}  Bxe4 {[%clk 0:02:31]} 18. Ng3 {[%clk 0:01:15]}  Bg6 {[%clk 0:02:15]} 19. h4 {[%clk 0:01:12]}  f6 {[%clk 0:02:00]} 20. Nxg6 {[%clk 0:01:12]}  hxg6 {[%clk 0:02:00]} 21. Ne4 {[%clk 0:01:11]}  Re8 {[%clk 0:01:56]} 22. f3 {[%clk 0:01:09]}  Re7 {[%clk 0:01:49]} 23. c3 {[%clk 0:00:52]}  Nc7 {[%clk 0:01:45]} 24. Rd8+ {[%clk 0:00:44]}  Kh7 {[%clk 0:01:43]} 25. Kf2 {[%clk 0:00:35]}  Nd5 {[%clk 0:01:41]} 26. g3 {[%clk 0:00:31]}  Nb6 {[%clk 0:01:18]} 27. b3 {[%clk 0:00:29]}  Rd7 {[%clk 0:01:12]} 28. Re8 {[%clk 0:00:21]}  Nd5 {[%clk 0:01:08]} 29. c4 {[%clk 0:00:20]}  Nb4 {[%clk 0:01:08]} 30. c5 {[%clk 0:00:19]}  Nxa2 {[%clk 0:01:04]} 31. Nd6 {[%clk 0:00:18]}  Nc1 {[%clk 0:01:00]} 32. b4 {[%clk 0:00:15]}  Nd3+ {[%clk 0:00:59]} 33. Ke3 {[%clk 0:00:15]}  Nxb4 {[%clk 0:01:00]} 34. Kd4 {[%clk 0:00:15]}  b6 {[%clk 0:00:45]} 35. Kc4 {[%clk 0:00:15]}  Na6 {[%clk 0:00:45]} 36. Ne4 {[%clk 0:00:10]}  Nxc5 {[%clk 0:00:38]} 37. Nxc5 {[%clk 0:00:09]}  bxc5 {[%clk 0:00:38]} 38. Re3 {[%clk 0:00:08]}  Rd5 {[%clk 0:00:37]} 39. Ra3 {[%clk 0:00:08]}  g5 {[%clk 0:00:31]} 40. hxg5 {[%clk 0:00:05]}  Rxg5 {[%clk 0:00:31]} 41. g4 {[%clk 0:00:06]}  f5 {[%clk 0:00:31]} 42. gxf5 {[%clk 0:00:05]}  Rxf5 {[%clk 0:00:31]} 43. Rxa7 {[%clk 0:00:05]}  Rxf3 {[%clk 0:00:31]} 44. Kxc5 {[%clk 0:00:06]}  Rc3+ {[%clk 0:00:30]} 45. Kd4 {[%clk 0:00:06]}  Rc1 {[%clk 0:00:29]} 46. Kd3 {[%clk 0:00:06]}  Kh6 {[%clk 0:00:29]} 47. Kd2 {[%clk 0:00:07]}  Rc5 {[%clk 0:00:28]} 48. Re7 {[%clk 0:00:06]}  g5 {[%clk 0:00:28]} 49. Ke2 {[%clk 0:00:05]}  Kh5 {[%clk 0:00:28]} 50. Kf3 {[%clk 0:00:06]}  Rc3+ {[%clk 0:00:28]} 51. Kg2 {[%clk 0:00:06]}  Kh4 {[%clk 0:00:27]} 52. Re4+ {[%clk 0:00:06]}  g4 {[%clk 0:00:28]} 53. Re8 {[%clk 0:00:07]}  Rc2+ {[%clk 0:00:28]} 54. Kf1 {[%clk 0:00:06]}  c5 {[%clk 0:00:27]} 55. Re3 {[%clk 0:00:04]}  c4 {[%clk 0:00:26]} 56. Re8 {[%clk 0:00:03]}  Kh3 {[%clk 0:00:25]} 57. Rg8 {[%clk 0:00:00]}  c3 {[%clk 0:00:22]} 0-1


[Site "https://www.chess.com"]

[Event "Titled Tuesday Blitz July 25 Early 2023"]
[White "Dwilewicz, Katarzyna"]
[Black "Tokman, Ariel"]
[WhiteFideId "1148486"]
[BlackFideId "117420"]
[WhiteElo "2351"]
[BlackElo "2522"]
[Result "0-1"]
[Round "5"]
[TimeControl "180+2"]
[Date "2023.07.25"]
[WhiteClock "0:00:00"]
[BlackClock "0:00:03"]
[Board "135"]

1. e4 {[%clk 0:03:00]}  e6 {[%clk 0:02:53]} 2. d4 {[%clk 0:02:59]}  d5 {[%clk 0:02:54]} 3. Nd2 {[%clk 0:02:59]}  Nf6 {[%clk 0:02:51]} 4. e5 {[%clk 0:02:59]}  Nfd7 {[%clk 0:02:51]} 5. Bd3 {[%clk 0:03:00]}  c5 {[%clk 0:02:51]} 6. c3 {[%clk 0:03:01]}  a6 {[%clk 0:02:49]} 7. Ne2 {[%clk 0:03:01]}  b5 {[%clk 0:02:49]} 8. O-O {[%clk 0:02:56]}  Bb7 {[%clk 0:02:49]} 9. f4 {[%clk 0:02:55]}  g6 {[%clk 0:02:50]} 10. Nf3 {[%clk 0:02:54]}  Nc6 {[%clk 0:02:48]} 11. b3 {[%clk 0:02:48]}  Qb6 {[%clk 0:02:46]} 12. Be3 {[%clk 0:02:46]}  cxd4 {[%clk 0:02:46]} 13. cxd4 {[%clk 0:02:32]}  Be7 {[%clk 0:02:36]} 14. Kh1 {[%clk 0:02:30]}  h5 {[%clk 0:02:28]} 15. Qd2 {[%clk 0:02:22]}  Bb4 {[%clk 0:02:15]} 16. Qb2 {[%clk 0:02:11]}  Qa5 {[%clk 0:02:12]} 17. a3 {[%clk 0:02:09]}  Be7 {[%clk 0:02:10]} 18. a4 {[%clk 0:02:01]}  Qb6 {[%clk 0:02:00]} 19. Rac1 {[%clk 0:01:59]}  bxa4 {[%clk 0:01:57]} 20. Rc3 {[%clk 0:01:52]}  a3 {[%clk 0:01:56]} 21. Qb1 {[%clk 0:01:48]}  Rc8 {[%clk 0:01:51]} 22. Bxg6 {[%clk 0:01:44]}  Nb4 {[%clk 0:01:32]} 23. Rxc8+ {[%clk 0:01:29]}  Bxc8 {[%clk 0:01:33]} 24. Bd3 {[%clk 0:01:27]}  a5 {[%clk 0:01:30]} 25. Nc3 {[%clk 0:01:15]}  Nxd3 {[%clk 0:01:22]} 26. Qxd3 {[%clk 0:01:12]}  Ba6 {[%clk 0:01:22]} 27. Qd1 {[%clk 0:01:00]}  Bxf1 {[%clk 0:01:21]} 28. Qxf1 {[%clk 0:01:01]}  Qxb3 {[%clk 0:01:20]} 29. Bd2 {[%clk 0:00:50]}  a2 {[%clk 0:01:06]} 30. f5 {[%clk 0:00:49]}  exf5 {[%clk 0:00:57]} 31. Qa1 {[%clk 0:00:25]}  Bb4 {[%clk 0:00:36]} 32. Nxa2 {[%clk 0:00:19]}  Rg8 {[%clk 0:00:33]} 33. Nxb4 {[%clk 0:00:16]}  a4 {[%clk 0:00:25]} 34. h3 {[%clk 0:00:09]}  a3 {[%clk 0:00:22]} 35. Kh2 {[%clk 0:00:06]}  Nb6 {[%clk 0:00:18]} 36. Qa2 {[%clk 0:00:06]}  Qxa2 {[%clk 0:00:17]} 37. Nxa2 {[%clk 0:00:07]}  Nc4 {[%clk 0:00:18]} 38. Bb4 {[%clk 0:00:07]}  Kd7 {[%clk 0:00:17]} 39. Ne1 {[%clk 0:00:04]}  Kc6 {[%clk 0:00:16]} 40. Nd3 {[%clk 0:00:03]}  Kb5 {[%clk 0:00:17]} 41. Kg1 {[%clk 0:00:04]}  Ka4 {[%clk 0:00:17]} 42. Ndc1 {[%clk 0:00:03]}  Rb8 {[%clk 0:00:16]} 43. Kf2 {[%clk 0:00:03]}  Rxb4 {[%clk 0:00:15]} 44. Nxb4 {[%clk 0:00:03]}  Kxb4 {[%clk 0:00:16]} 45. Kf3 {[%clk 0:00:03]}  Kc3 {[%clk 0:00:16]} 46. Kf4 {[%clk 0:00:03]}  Kc2 {[%clk 0:00:16]} 47. Na2 {[%clk 0:00:03]}  Kb2 {[%clk 0:00:16]} 48. Nb4 {[%clk 0:00:03]}  Kb3 {[%clk 0:00:15]} 49. Nd3 {[%clk 0:00:02]}  Kc3 {[%clk 0:00:14]} 50. Nc1 {[%clk 0:00:03]}  Kxd4 {[%clk 0:00:06]} 51. Kxf5 {[%clk 0:00:02]}  Kc3 {[%clk 0:00:04]} 52. g4 {[%clk 0:00:02]}  hxg4 {[%clk 0:00:04]} 53. hxg4 {[%clk 0:00:02]}  d4 {[%clk 0:00:04]} 54. g5 {[%clk 0:00:02]}  d3 {[%clk 0:00:04]} 55. e6 {[%clk 0:00:01]}  fxe6+ {[%clk 0:00:04]} 56. Kxe6 {[%clk 0:00:02]}  d2 {[%clk 0:00:05]} 57. Na2+ {[%clk 0:00:03]}  Kb3 {[%clk 0:00:04]} 58. g6 {[%clk 0:00:03]}  Kxa2 {[%clk 0:00:04]} 59. g7 {[%clk 0:00:03]}  d1=Q {[%clk 0:00:04]} 60. g8=Q {[%clk 0:00:04]}  Qb3 {[%clk 0:00:03]} 61. Qg2+ {[%clk 0:00:03]}  Nd2+ {[%clk 0:00:03]} 62. Kd6 {[%clk 0:00:04]}  Qc2 {[%clk 0:00:03]} 63. Kd5 {[%clk 0:00:04]}  Kb1 {[%clk 0:00:03]} 64. Qg1+ {[%clk 0:00:03]}  Qc1 {[%clk 0:00:03]} 65. Qb6+ {[%clk 0:00:04]}  Qb2 {[%clk 0:00:03]} 66. Qg1+ {[%clk 0:00:04]}  Kc2 {[%clk 0:00:03]} 67. Qc5+ {[%clk 0:00:03]}  Qc3 {[%clk 0:00:03]} 68. Qa7 {[%clk 0:00:00]}  Nb1 {[%clk 0:00:03]} 0-1


[Site "https://www.chess.com"]

[Event "Titled Tuesday Blitz July 25 Early 2023"]
[White "Mindhunter08"]
[Black "K2JW"]
[WhiteElo "2521"]
[BlackElo "2348"]
[Result "1-0"]
[Round "5"]
[TimeControl "180+2"]
[Date "2023.07.25"]
[WhiteClock "0:00:35"]
[BlackClock "0:00:00"]
[Board "136"]

1. e4 {[%clk 0:02:55]}  c6 {[%clk 0:02:04]} 2. Nf3 {[%clk 0:02:54]}  d5 {[%clk 0:02:04]} 3. Nc3 {[%clk 0:02:54]}  Bg4 {[%clk 0:02:04]} 4. h3 {[%clk 0:02:55]}  Bxf3 {[%clk 0:02:04]} 5. Qxf3 {[%clk 0:02:55]}  e6 {[%clk 0:02:04]} 6. d3 {[%clk 0:02:55]}  Nd7 {[%clk 0:02:03]} 7. Bd2 {[%clk 0:02:52]}  Qb6 {[%clk 0:02:01]} 8. O-O-O {[%clk 0:02:51]}  d4 {[%clk 0:02:00]} 9. Ne2 {[%clk 0:02:50]}  a5 {[%clk 0:01:59]} 10. g4 {[%clk 0:02:48]}  Bc5 {[%clk 0:01:57]} 11. h4 {[%clk 0:02:42]}  a4 {[%clk 0:01:40]} 12. Qg3 {[%clk 0:02:25]}  Ne7 {[%clk 0:01:07]} 13. g5 {[%clk 0:02:21]}  Qa6 {[%clk 0:00:40]} 14. h5 {[%clk 0:02:13]}  b5 {[%clk 0:00:40]} 15. Bg2 {[%clk 0:01:47]}  O-O-O {[%clk 0:00:14]} 16. Kb1 {[%clk 0:01:39]}  b4 {[%clk 0:00:14]} 17. Nc1 {[%clk 0:01:33]}  Kb7 {[%clk 0:00:14]} 18. f4 {[%clk 0:01:28]}  Ra8 {[%clk 0:00:10]} 19. f5 {[%clk 0:01:12]}  e5 {[%clk 0:00:08]} 20. f6 {[%clk 0:01:08]}  gxf6 {[%clk 0:00:07]} 21. gxf6 {[%clk 0:01:08]}  Rhg8 {[%clk 0:00:07]} 22. Qf3 {[%clk 0:01:00]}  Nc8 {[%clk 0:00:05]} 23. Bh3 {[%clk 0:01:00]}  Ncb6 {[%clk 0:00:04]} 24. Rhg1 {[%clk 0:00:55]}  b3 {[%clk 0:00:04]} 25. Rg7 {[%clk 0:00:43]}  bxc2+ {[%clk 0:00:04]} 26. Kxc2 {[%clk 0:00:43]}  a3 {[%clk 0:00:04]} 27. b3 {[%clk 0:00:41]}  Bd6 {[%clk 0:00:01]} 28. Rxf7 {[%clk 0:00:38]}  Kc7 {[%clk 0:00:00]} 29. Qf5 {[%clk 0:00:35]} 1-0


[Site "https://www.chess.com"]

[Event "Titled Tuesday Blitz July 25 Early 2023"]
[White "Matko, Ognjen"]
[Black "Shturman, Arseniy"]
[WhiteFideId "14509717"]
[BlackFideId "34275797"]
[WhiteElo "2339"]
[BlackElo "2518"]
[Result "1-0"]
[Round "5"]
[TimeControl "180+2"]
[Date "2023.07.25"]
[WhiteClock "0:00:07"]
[BlackClock "0:00:00"]
[Board "137"]

1. f4 {[%clk 0:03:00]}  d5 {[%clk 0:02:55]} 2. Nf3 {[%clk 0:03:00]}  Bg4 {[%clk 0:02:54]} 3. e3 {[%clk 0:02:57]}  Nd7 {[%clk 0:02:54]} 4. Be2 {[%clk 0:02:56]}  f5 {[%clk 0:02:49]} 5. d4 {[%clk 0:02:51]}  Ngf6 {[%clk 0:02:48]} 6. Ne5 {[%clk 0:02:51]}  Bxe2 {[%clk 0:02:46]} 7. Qxe2 {[%clk 0:02:50]}  e6 {[%clk 0:02:46]} 8. Nd2 {[%clk 0:02:43]}  Bd6 {[%clk 0:02:44]} 9. Ndf3 {[%clk 0:02:39]}  Ne4 {[%clk 0:02:42]} 10. O-O {[%clk 0:02:37]}  Nxe5 {[%clk 0:02:39]} 11. fxe5 {[%clk 0:02:31]}  Be7 {[%clk 0:02:36]} 12. c4 {[%clk 0:02:31]}  c6 {[%clk 0:02:34]} 13. b3 {[%clk 0:02:30]}  O-O {[%clk 0:02:31]} 14. a4 {[%clk 0:02:29]}  Qb6 {[%clk 0:01:23]} 15. Ba3 {[%clk 0:02:26]}  Bxa3 {[%clk 0:01:21]} 16. Rxa3 {[%clk 0:02:27]}  Qb4 {[%clk 0:01:21]} 17. Rfa1 {[%clk 0:02:23]}  a5 {[%clk 0:01:19]} 18. Ne1 {[%clk 0:02:15]}  Rac8 {[%clk 0:01:05]} 19. Nd3 {[%clk 0:02:11]}  Qe7 {[%clk 0:01:04]} 20. c5 {[%clk 0:02:05]}  g5 {[%clk 0:00:49]} 21. b4 {[%clk 0:01:59]}  Ra8 {[%clk 0:00:40]} 22. b5 {[%clk 0:01:52]}  Kh8 {[%clk 0:00:35]} 23. Rb3 {[%clk 0:01:46]}  f4 {[%clk 0:00:33]} 24. bxc6 {[%clk 0:01:31]}  bxc6 {[%clk 0:00:27]} 25. Rab1 {[%clk 0:01:30]}  Ra7 {[%clk 0:00:15]} 26. exf4 {[%clk 0:01:15]}  gxf4 {[%clk 0:00:15]} 27. Qh5 {[%clk 0:01:13]}  f3 {[%clk 0:00:12]} 28. Rb8 {[%clk 0:01:10]}  f2+ {[%clk 0:00:11]} 29. Nxf2 {[%clk 0:00:57]}  Nxf2 {[%clk 0:00:06]} 30. Qh6 {[%clk 0:00:55]}  Kg8 {[%clk 0:00:02]} 31. R1b3 {[%clk 0:00:51]}  Ne4 {[%clk 0:00:01]} 32. Rxf8+ {[%clk 0:00:33]}  Qxf8 {[%clk 0:00:01]} 33. Qxe6+ {[%clk 0:00:33]}  Qf7 {[%clk 0:00:01]} 34. Rb8+ {[%clk 0:00:30]}  Kg7 {[%clk 0:00:01]} 35. Qg4+ {[%clk 0:00:27]}  Qg6 {[%clk 0:00:01]} 36. Qc8 {[%clk 0:00:24]}  Rf7 {[%clk 0:00:02]} 37. e6 {[%clk 0:00:13]}  Kh6 {[%clk 0:00:02]} 38. exf7 {[%clk 0:00:12]}  Qf5 {[%clk 0:00:00]} 39. Qxf5 {[%clk 0:00:07]} 1-0


[Site "https://www.chess.com"]

[Event "Titled Tuesday Blitz July 25 Early 2023"]
[White "Makkar, Rajat"]
[Black "Osinovsky, Stepan"]
[WhiteFideId "36016810"]
[BlackFideId "4157354"]
[WhiteElo "2515"]
[BlackElo "2335"]
[Result "1-0"]
[Round "5"]
[TimeControl "180+2"]
[Date "2023.07.25"]
[WhiteClock "0:02:02"]
[BlackClock "0:00:00"]
[Board "138"]

1. d4 {[%clk 0:03:00]}  Nf6 {[%clk 0:03:00]} 2. c4 {[%clk 0:03:00]}  g6 {[%clk 0:03:00]} 3. h4 {[%clk 0:03:00]}  h5 {[%clk 0:02:57]} 4. Nc3 {[%clk 0:02:56]}  Bg7 {[%clk 0:02:57]} 5. e4 {[%clk 0:02:52]}  d6 {[%clk 0:02:58]} 6. Nf3 {[%clk 0:02:52]}  Nbd7 {[%clk 0:02:51]} 7. Bg5 {[%clk 0:02:51]}  c5 {[%clk 0:02:43]} 8. d5 {[%clk 0:02:50]}  a6 {[%clk 0:02:41]} 9. a4 {[%clk 0:02:50]}  Qa5 {[%clk 0:02:30]} 10. Bd3 {[%clk 0:02:45]}  Ng4 {[%clk 0:02:16]} 11. O-O {[%clk 0:02:41]}  Bxc3 {[%clk 0:01:59]} 12. bxc3 {[%clk 0:02:38]}  Qxc3 {[%clk 0:01:59]} 13. Rc1 {[%clk 0:02:28]}  Qg7 {[%clk 0:01:46]} 14. Bd2 {[%clk 0:02:27]}  f6 {[%clk 0:01:14]} 15. Qc2 {[%clk 0:02:24]}  Nde5 {[%clk 0:01:04]} 16. Be2 {[%clk 0:02:19]}  Nxf3+ {[%clk 0:00:56]} 17. gxf3 {[%clk 0:02:20]}  Ne5 {[%clk 0:00:56]} 18. f4 {[%clk 0:02:20]}  Ng4 {[%clk 0:00:56]} 19. f3 {[%clk 0:02:21]}  Nh6 {[%clk 0:00:44]} 20. Kf2 {[%clk 0:02:19]}  f5 {[%clk 0:00:22]} 21. Bc3 {[%clk 0:02:18]}  Qf8 {[%clk 0:00:20]} 22. e5 {[%clk 0:02:08]}  Bd7 {[%clk 0:00:12]} 23. e6 {[%clk 0:02:07]}  Bc8 {[%clk 0:00:13]} 24. Qb2 {[%clk 0:02:03]}  Rh7 {[%clk 0:00:00]} 25. Qb6 {[%clk 0:02:02]} 1-0


[Site "https://www.chess.com"]

[Event "Titled Tuesday Blitz July 25 Early 2023"]
[White "kiwibobo"]
[Black "Sreyas Payyappat"]
[BlackFideId "46674969"]
[WhiteElo "2325"]
[BlackElo "2513"]
[Result "1/2-1/2"]
[Round "5"]
[TimeControl "180+2"]
[Date "2023.07.25"]
[WhiteClock "0:00:16"]
[BlackClock "0:00:26"]
[Board "139"]

1. e4 {[%clk 0:03:00]}  c6 {[%clk 0:02:57]} 2. d4 {[%clk 0:03:00]}  d5 {[%clk 0:02:58]} 3. Nc3 {[%clk 0:03:00]}  dxe4 {[%clk 0:02:57]} 4. Nxe4 {[%clk 0:03:01]}  Nf6 {[%clk 0:02:58]} 5. Nxf6+ {[%clk 0:03:01]}  exf6 {[%clk 0:02:59]} 6. c3 {[%clk 0:03:01]}  Bd6 {[%clk 0:02:58]} 7. Bd3 {[%clk 0:03:02]}  O-O {[%clk 0:02:57]} 8. Qc2 {[%clk 0:03:03]}  Re8+ {[%clk 0:02:58]} 9. Ne2 {[%clk 0:03:03]}  h5 {[%clk 0:02:59]} 10. Be3 {[%clk 0:03:04]}  Nd7 {[%clk 0:02:58]} 11. O-O-O {[%clk 0:03:04]}  Nf8 {[%clk 0:02:59]} 12. Kb1 {[%clk 0:03:05]}  Be6 {[%clk 0:02:54]} 13. c4 {[%clk 0:03:05]}  Rc8 {[%clk 0:02:51]} 14. a3 {[%clk 0:03:05]}  b5 {[%clk 0:02:51]} 15. c5 {[%clk 0:03:05]}  Be7 {[%clk 0:02:45]} 16. Nf4 {[%clk 0:02:55]}  b4 {[%clk 0:02:31]} 17. axb4 {[%clk 0:02:48]}  Rb8 {[%clk 0:02:29]} 18. b5 {[%clk 0:02:43]}  Qa5 {[%clk 0:02:12]} 19. d5 {[%clk 0:02:42]}  cxd5 {[%clk 0:01:57]} 20. Bd4 {[%clk 0:01:53]}  Rec8 {[%clk 0:01:52]} 21. Rc1 {[%clk 0:01:28]}  Nd7 {[%clk 0:01:31]} 22. Nxe6 {[%clk 0:01:26]}  fxe6 {[%clk 0:01:32]} 23. Bh7+ {[%clk 0:01:21]}  Kf8 {[%clk 0:01:18]} 24. c6 {[%clk 0:00:47]}  Qxb5 {[%clk 0:01:11]} 25. Qd3 {[%clk 0:00:30]}  Qxd3+ {[%clk 0:01:04]} 26. Bxd3 {[%clk 0:00:31]}  Ne5 {[%clk 0:01:01]} 27. c7 {[%clk 0:00:24]}  Nxd3 {[%clk 0:00:51]} 28. cxb8=Q {[%clk 0:00:23]}  Rxb8 {[%clk 0:00:52]} 29. Rc7 {[%clk 0:00:19]}  e5 {[%clk 0:00:32]} 30. Rd1 {[%clk 0:00:19]}  Nf4 {[%clk 0:00:19]} 31. Bxa7 {[%clk 0:00:17]}  Rb5 {[%clk 0:00:17]} 32. Be3 {[%clk 0:00:17]}  Nxg2 {[%clk 0:00:17]} 33. Rd7 {[%clk 0:00:15]}  d4 {[%clk 0:00:17]} 34. Bc1 {[%clk 0:00:14]}  Nh4 {[%clk 0:00:17]} 35. Rg1 {[%clk 0:00:13]}  Nf5 {[%clk 0:00:17]} 36. Rd1 {[%clk 0:00:12]}  e4 {[%clk 0:00:17]} 37. R1xd4 {[%clk 0:00:11]}  Nxd4 {[%clk 0:00:18]} 38. Rxd4 {[%clk 0:00:11]}  f5 {[%clk 0:00:19]} 39. Kc2 {[%clk 0:00:11]}  Bf6 {[%clk 0:00:19]} 40. Rd7 {[%clk 0:00:09]}  g5 {[%clk 0:00:19]} 41. Rh7 {[%clk 0:00:09]}  h4 {[%clk 0:00:19]} 42. Rh5 {[%clk 0:00:09]}  Kg7 {[%clk 0:00:20]} 43. Bxg5 {[%clk 0:00:09]}  Rxb2+ {[%clk 0:00:20]} 44. Kc1 {[%clk 0:00:09]}  Rxf2 {[%clk 0:00:19]} 45. Bxf6+ {[%clk 0:00:08]}  Kxf6 {[%clk 0:00:20]} 46. Rxh4 {[%clk 0:00:09]}  Kg5 {[%clk 0:00:20]} 47. Rh8 {[%clk 0:00:09]}  e3 {[%clk 0:00:19]} 48. Kd1 {[%clk 0:00:09]}  f4 {[%clk 0:00:20]} 49. Ke1 {[%clk 0:00:10]}  f3 {[%clk 0:00:20]} 50. Re8 {[%clk 0:00:09]}  Re2+ {[%clk 0:00:20]} 51. Kf1 {[%clk 0:00:09]}  Kf4 {[%clk 0:00:20]} 52. Rf8+ {[%clk 0:00:09]}  Ke4 {[%clk 0:00:21]} 53. Re8+ {[%clk 0:00:09]}  Kd4 {[%clk 0:00:21]} 54. Rd8+ {[%clk 0:00:08]}  Kc4 {[%clk 0:00:22]} 55. Rc8+ {[%clk 0:00:09]}  Kb5 {[%clk 0:00:22]} 56. Rb8+ {[%clk 0:00:09]}  Ka6 {[%clk 0:00:22]} 57. Re8 {[%clk 0:00:09]}  Kb7 {[%clk 0:00:22]} 58. h4 {[%clk 0:00:08]}  Kc7 {[%clk 0:00:22]} 59. h5 {[%clk 0:00:08]}  Kd7 {[%clk 0:00:22]} 60. Re4 {[%clk 0:00:08]}  Kd6 {[%clk 0:00:20]} 61. h6 {[%clk 0:00:09]}  Rf2+ {[%clk 0:00:16]} 62. Ke1 {[%clk 0:00:08]}  Kd5 {[%clk 0:00:12]} 63. Rxe3 {[%clk 0:00:08]}  Rh2 {[%clk 0:00:12]} 64. Rxf3 {[%clk 0:00:08]}  Rxh6 {[%clk 0:00:10]} 65. Rf2 {[%clk 0:00:08]}  Rh1+ {[%clk 0:00:11]} 66. Ke2 {[%clk 0:00:08]}  Ke4 {[%clk 0:00:11]} 67. Rf1 {[%clk 0:00:08]}  Rh2+ {[%clk 0:00:11]} 68. Rf2 {[%clk 0:00:08]}  Rh8 {[%clk 0:00:12]} 69. Rg2 {[%clk 0:00:08]}  Ra8 {[%clk 0:00:12]} 70. Rg4+ {[%clk 0:00:09]}  Kf5 {[%clk 0:00:13]} 71. Rc4 {[%clk 0:00:09]}  Ra2+ {[%clk 0:00:13]} 72. Kd3 {[%clk 0:00:10]}  Ke5 {[%clk 0:00:14]} 73. Rc3 {[%clk 0:00:10]}  Kd5 {[%clk 0:00:15]} 74. Rb3 {[%clk 0:00:10]}  Rh2 {[%clk 0:00:15]} 75. Rb5+ {[%clk 0:00:10]}  Kc6 {[%clk 0:00:16]} 76. Rg5 {[%clk 0:00:11]}  Rh3+ {[%clk 0:00:16]} 77. Ke4 {[%clk 0:00:12]}  Rh4+ {[%clk 0:00:17]} 78. Kf5 {[%clk 0:00:12]}  Kd6 {[%clk 0:00:17]} 79. Rg6+ {[%clk 0:00:12]}  Ke7 {[%clk 0:00:17]} 80. Rg7+ {[%clk 0:00:12]}  Kf8 {[%clk 0:00:17]} 81. Rg5 {[%clk 0:00:13]}  Ra4 {[%clk 0:00:18]} 82. Kg6 {[%clk 0:00:13]}  Kg8 {[%clk 0:00:18]} 83. Rf5 {[%clk 0:00:13]}  Ra6+ {[%clk 0:00:18]} 84. Rf6 {[%clk 0:00:14]}  Ra1 {[%clk 0:00:19]} 85. Rb6 {[%clk 0:00:14]}  Rg1+ {[%clk 0:00:19]} 86. Kf5 {[%clk 0:00:14]}  Kh7 {[%clk 0:00:20]} 87. Kf6 {[%clk 0:00:14]}  Rf1+ {[%clk 0:00:20]} 88. Ke5 {[%clk 0:00:15]}  Kg7 {[%clk 0:00:20]} 89. Rb7+ {[%clk 0:00:15]}  Kg6 {[%clk 0:00:21]} 90. Rb6+ {[%clk 0:00:15]}  Kg5 {[%clk 0:00:21]} 91. Kd6 {[%clk 0:00:16]}  Rf5 {[%clk 0:00:22]} 92. Kc7 {[%clk 0:00:16]}  Rf7+ {[%clk 0:00:22]} 93. Kc6 {[%clk 0:00:16]}  Rf8 {[%clk 0:00:23]} 94. Rb7 {[%clk 0:00:16]}  Kg6 {[%clk 0:00:24]} 95. Kc7 {[%clk 0:00:16]}  Rf6 {[%clk 0:00:25]} 96. Rb6 {[%clk 0:00:16]}  Kf7 {[%clk 0:00:25]} 97. Rxf6+ {[%clk 0:00:16]}  Kxf6 {[%clk 0:00:26]} 1/2-1/2


[Site "https://www.chess.com"]

[Event "Titled Tuesday Blitz July 25 Early 2023"]
[White "Huynh, Lam Binh Nguyen"]
[Black "only_strong_moves"]
[WhiteFideId "12401633"]
[WhiteElo "2311"]
[BlackElo "2513"]
[Result "0-1"]
[Round "5"]
[TimeControl "180+2"]
[Date "2023.07.25"]
[WhiteClock "0:00:19"]
[BlackClock "0:00:12"]
[Board "141"]

1. d4 {[%clk 0:03:00]}  d5 {[%clk 0:03:00]} 2. Bf4 {[%clk 0:03:00]}  Nf6 {[%clk 0:02:59]} 3. e3 {[%clk 0:02:57]}  e6 {[%clk 0:02:59]} 4. c3 {[%clk 0:02:53]}  c5 {[%clk 0:02:59]} 5. Nd2 {[%clk 0:02:52]}  Nc6 {[%clk 0:03:00]} 6. Ngf3 {[%clk 0:02:45]}  Nh5 {[%clk 0:02:59]} 7. Bg5 {[%clk 0:02:45]}  f6 {[%clk 0:02:59]} 8. Bh4 {[%clk 0:02:45]}  g6 {[%clk 0:02:56]} 9. Bd3 {[%clk 0:02:42]}  cxd4 {[%clk 0:02:55]} 10. cxd4 {[%clk 0:02:37]}  Bd6 {[%clk 0:02:55]} 11. O-O {[%clk 0:02:35]}  O-O {[%clk 0:02:55]} 12. Rc1 {[%clk 0:02:34]}  Bd7 {[%clk 0:02:53]} 13. Bb1 {[%clk 0:02:32]}  Rc8 {[%clk 0:02:50]} 14. Nb3 {[%clk 0:02:28]}  b6 {[%clk 0:02:49]} 15. a3 {[%clk 0:02:01]}  Qe7 {[%clk 0:02:49]} 16. Qd3 {[%clk 0:01:59]}  a5 {[%clk 0:02:45]} 17. Ba2 {[%clk 0:01:54]}  a4 {[%clk 0:02:44]} 18. Nbd2 {[%clk 0:01:54]}  Na7 {[%clk 0:02:43]} 19. Rxc8 {[%clk 0:01:52]}  Rxc8 {[%clk 0:02:43]} 20. Qa6 {[%clk 0:01:25]}  Bb5 {[%clk 0:02:40]} 21. Qxb6 {[%clk 0:01:25]}  Rb8 {[%clk 0:02:22]} 22. Qa5 {[%clk 0:01:22]}  Bxf1 {[%clk 0:02:21]} 23. Nxf1 {[%clk 0:01:17]}  Rxb2 {[%clk 0:02:17]} 24. Bxd5 {[%clk 0:01:12]}  exd5 {[%clk 0:02:12]} 25. Qxd5+ {[%clk 0:01:12]}  Kh8 {[%clk 0:02:07]} 26. Ne5 {[%clk 0:01:12]}  Rb5 {[%clk 0:01:41]} 27. Qa8+ {[%clk 0:00:59]}  Rb8 {[%clk 0:01:36]} 28. Qd5 {[%clk 0:00:53]}  Bxe5 {[%clk 0:01:15]} 29. dxe5 {[%clk 0:00:53]}  Qxe5 {[%clk 0:01:15]} 30. Qd7 {[%clk 0:00:53]}  Nb5 {[%clk 0:01:08]} 31. g4 {[%clk 0:00:52]}  Ng7 {[%clk 0:00:56]} 32. Bg3 {[%clk 0:00:50]}  Qe8 {[%clk 0:00:56]} 33. Qd3 {[%clk 0:00:41]}  Rd8 {[%clk 0:00:55]} 34. Qc4 {[%clk 0:00:41]}  Nxa3 {[%clk 0:00:55]} 35. Qb4 {[%clk 0:00:39]}  Nc2 {[%clk 0:00:53]} 36. Qb2 {[%clk 0:00:39]}  Rc8 {[%clk 0:00:52]} 37. Qxf6 {[%clk 0:00:39]}  Qf8 {[%clk 0:00:36]} 38. Qb2 {[%clk 0:00:38]}  a3 {[%clk 0:00:34]} 39. Qa2 {[%clk 0:00:37]}  Nb4 {[%clk 0:00:34]} 40. Qb3 {[%clk 0:00:35]}  Nc6 {[%clk 0:00:29]} 41. h4 {[%clk 0:00:29]}  Ra8 {[%clk 0:00:26]} 42. Qa2 {[%clk 0:00:28]}  Qg8 {[%clk 0:00:26]} 43. Qa1 {[%clk 0:00:28]}  Qb3 {[%clk 0:00:23]} 44. h5 {[%clk 0:00:25]}  Qb2 {[%clk 0:00:22]} 45. Qd1 {[%clk 0:00:25]}  gxh5 {[%clk 0:00:20]} 46. Qd5 {[%clk 0:00:22]}  Qf6 {[%clk 0:00:17]} 47. g5 {[%clk 0:00:22]}  Qg6 {[%clk 0:00:17]} 48. Qa2 {[%clk 0:00:19]}  Qxg5 {[%clk 0:00:15]} 49. Kh2 {[%clk 0:00:19]}  h4 {[%clk 0:00:15]} 50. Bf4 {[%clk 0:00:20]}  Qg6 {[%clk 0:00:15]} 51. Nd2 {[%clk 0:00:20]}  Qe6 {[%clk 0:00:15]} 52. Qa1 {[%clk 0:00:19]}  a2 {[%clk 0:00:15]} 53. Bh6 {[%clk 0:00:19]}  Qe5+ {[%clk 0:00:14]} 54. Qxe5 {[%clk 0:00:19]}  Nxe5 {[%clk 0:00:15]} 55. Ne4 {[%clk 0:00:19]}  a1=Q {[%clk 0:00:15]} 56. Ng5 {[%clk 0:00:19]}  Qf1 {[%clk 0:00:13]} 57. Ne4 {[%clk 0:00:19]}  h3 {[%clk 0:00:12]} 58. Kg3 {[%clk 0:00:18]}  Qg2+ {[%clk 0:00:12]} 59. Kf4 {[%clk 0:00:19]}  Ng6# {[%clk 0:00:12]} 0-1


[Site "https://www.chess.com"]